bitfinex/quotes_BTCUSD_20230403
["timestamp","ask_amount","ask_price","bid_price","bid_amount"]
[1680508947579,0.11175061,28049.0,28041.0,0.018011]
[1680508947806,0.10399579,28046.0,28041.0,0.37280497]
[1680508948029,0.19067187,28048.0,28042.0,0.73237497]
[1680508948030,0.050181,28045.0,28042.0,0.73237497]
[1680508948251,0.14197487,28048.0,28043.0,0.017829]
[1680508948487,0.050694,28047.0,28043.0,0.35497497]
[1680508948711,0.10764561,28047.0,28042.0,0.01783]
[1680508948935,0.050127,28046.0,28043.0,0.35497497]
[1680508949162,0.12398794,28048.0,28041.0,0.01801]
[1680508949385,0.19160987,28047.0,28042.0,0.35497497]
[1680508949613,0.053514,28046.0,28041.0,0.00018]
[1680508949833,0.14197487,28046.0,28041.0,0.01783]
[1680508950053,0.048092,28045.0,28037.0,0.035846]
[1680508950286,0.048092,28045.0,28036.0,0.00018]
[1680508950287,0.14197487,28044.0,28036.0,0.00018]
[1680508950519,0.185074,28043.0,28036.0,0.00018]
[1680508950783,0.185074,28043.0,28036.0,0.017834]
[1680508950784,0.19247887,28042.0,28036.0,0.017834]
[1680508951010,0.05089,28041.0,28037.0,0.632054]
[1680508951234,0.00018,28042.0,28038.0,0.430897]
[1680508951462,0.3356,28046.0,28039.0,0.35497497]
[1680508951463,0.00018,28045.0,28039.0,0.35497497]
[1680508951682,0.047141,28045.0,28039.0,0.35497497]
[1680508951904,0.047261,28045.0,28038.0,0.00018]
[1680508952179,0.46630509,28044.0,28038.0,0.017832]
[1680508952383,0.1357,28042.0,28034.0,0.00018]
[1680508952613,0.19378187,28041.0,28035.0,0.017834]
[1680508952831,0.051496,28040.0,28035.0,0.017834]
[1680508953058,0.14197487,28040.0,28035.0,0.37280897]
[1680508953281,0.13588,28042.0,28036.0,0.35497497]
[1680508953514,0.050503,28041.0,28037.0,0.017833]
[1680508953731,0.050553,28040.0,28037.0,0.017833]
[1680508953955,0.053034,28041.0,28037.0,0.017833]
[1680508954392,0.053034,28041.0,28037.0,0.37280797]
[1680508954669,0.00018,28044.0,28037.0,0.37280797]
[1680508954887,0.19617087,28044.0,28037.0,0.37280797]
[1680508955117,0.048648,28043.0,28037.0,0.37280797]
[1680508955343,0.048648,28043.0,28038.0,0.35497497]
[1680508955568,0.051582,28044.0,28039.0,0.017831]
[1680508955800,0.17698517,28044.0,28039.0,0.017831]
[1680508956029,0.050742,28043.0,28038.0,0.017832]
[1680508956241,0.19271687,28043.0,28037.0,0.017833]
[1680508956466,0.049918,28042.0,28037.0,0.017833]
[1680508956685,0.19189287,28042.0,28037.0,0.017833]
[1680508956909,0.048185,28041.0,28037.0,0.017833]
[1680508957373,0.051888,28042.0,28038.0,0.73237497]
[1680508957605,0.00018,28043.0,28039.0,0.502224]
[1680508957827,0.13034065,28045.0,28040.0,0.73237497]
[1680508958049,0.051629,28044.0,28041.0,0.053491]
[1680508958988,0.0515041,28044.0,28041.0,0.053491]
[1680508959218,0.43388,28047.0,28041.0,0.053491]
[1680508959219,0.150741,28046.0,28041.0,0.053491]
[1680508959445,0.048356,28045.0,28042.0,0.35497497]
[1680508959662,0.33578,28048.0,28042.0,0.35497497]
[1680508959663,0.050143,28047.0,28043.0,0.502207]
[1680508959904,0.13578,28048.0,28044.0,0.35497497]
[1680508960104,0.051203,28047.0,28045.0,0.017828]
[1680508962369,0.0491504,28049.0,28046.0,0.35497497]
[1680508962590,0.0014334,28049.0,28047.0,0.3458525]
[1680508962827,0.0014334,28049.0,28048.0,0.35497497]
[1680508963050,0.0014334,28049.0,28048.0,0.38123697]
[1680508963276,0.0014334,28049.0,28048.0,0.75863697]
[1680508964442,0.02387001,28053.0,28049.0,0.1]
[1680508964674,0.02387001,28053.0,28052.0,0.5118]
[1680508964936,0.02387001,28053.0,28052.0,1.60484697]
[1680508965167,0.02387001,28053.0,28052.0,1.62271346]
[1680508965400,0.02387001,28053.0,28052.0,1.88872279]
[1680508965635,7.001e-05,28053.0,28052.0,1.88878279]
[1680508965866,7.001e-05,28053.0,28052.0,1.88872279]
[1680508966094,7.001e-05,28053.0,28052.0,1.8708563]
[1680508966332,7.001e-05,28053.0,28052.0,1.5708563]
[1680508967235,7.001e-05,28053.0,28049.0,0.478258]
[1680508967236,7.001e-05,28053.0,28049.0,0.035831]
[1680508967461,0.14204488,28053.0,28052.0,0.017824]
[1680508967720,7.001e-05,28053.0,28052.0,0.37169897]
[1680508967959,7.001e-05,28053.0,28049.0,0.00018]
[1680508968184,0.19384888,28053.0,28052.0,0.017824]
[1680508968415,0.00025001,28053.0,28052.0,0.78584697]
[1680508968642,7.001e-05,28053.0,28052.0,0.017824]
[1680508968865,0.04948801,28053.0,28052.0,0.017824]
[1680508969094,0.04948801,28053.0,28052.0,0.37279897]
[1680508969323,0.00025001,28053.0,28052.0,0.37279897]
[1680508969549,7.001e-05,28053.0,28052.0,0.017824]
[1680508969776,0.05195501,28053.0,28052.0,0.37279897]
[1680508970050,0.05213501,28053.0,28052.0,0.37279897]
[1680508970269,0.00025001,28053.0,28052.0,0.75019897]
[1680508970492,7.001e-05,28053.0,28052.0,0.75019897]
[1680508970714,7.001e-05,28053.0,28052.0,0.37279897]
[1680508971416,7.001e-05,28053.0,28052.0,0.73237497]
[1680508971660,7.001e-05,28053.0,28052.0,0.89407697]
[1680508972756,7.001e-05,28053.0,28052.0,1.59017346]
[1680508972970,7.001e-05,28053.0,28052.0,1.41212346]
[1680508973399,7.001e-05,28053.0,28052.0,1.51212346]
[1680508973857,7.001e-05,28053.0,28052.0,1.41212346]
[1680508974512,7.001e-05,28053.0,28052.0,1.51212346]
[1680508974947,7.001e-05,28053.0,28052.0,1.41212346]
[1680508975165,7.001e-05,28053.0,28052.0,1.19425697]
[1680508975393,7.001e-05,28053.0,28052.0,0.75855697]
[1680508975612,7.001e-05,28053.0,28052.0,1.2113586]
[1680508975829,7.001e-05,28053.0,28052.0,0.75855697]
[1680508976038,7.001e-05,28053.0,28052.0,0.75037897]
[1680508976931,7.001e-05,28053.0,28052.0,0.37297897]
[1680508977373,7.001e-05,28053.0,28052.0,0.018004]
[1680508977374,0.14204488,28053.0,28052.0,0.018004]
[1680508977590,0.05322001,28053.0,28052.0,0.017824]
[1680508979403,0.27067504,28053.0,28052.0,0.017824]
[1680508979628,0.76762488,28053.0,28049.0,0.00018]
[1680508979846,0.19286387,28052.0,28047.0,0.017826]
[1680508980065,0.19286387,28052.0,28043.0,0.035839]
[1680508980066,0.188499,28051.0,28043.0,0.035839]
[1680508980283,0.188499,28051.0,28046.0,0.017827]
[1680508980284,0.54587084,28050.0,28046.0,0.017827]
[1680508980500,0.150332,28049.0,28046.0,0.017827]
[1680508980717,0.049485,28048.0,28046.0,0.017827]
[1680508980935,0.26126962,28071.0,28060.0,7.18217147]
[1680508981155,0.26126962,28071.0,28060.0,5.21570581]
[1680508981156,1.23387066,28061.0,28060.0,5.21570581]
[1680508981375,2.8538195,28061.0,28060.0,5.21570581]
[1680508981649,3.2312195,28061.0,28060.0,5.21570581]
[1680508981862,3.2312195,28061.0,28060.0,5.07373094]
[1680508982081,3.2210395,28061.0,28060.0,5.07391094]
[1680508982299,1.08063697,28061.0,28060.0,5.07391094]
[1680508982739,1.09845497,28061.0,28060.0,5.07391094]
[1680508983169,1.08063697,28061.0,28060.0,5.07391094]
[1680508984265,2.11221417,28061.0,28060.0,4.49953946]
[1680508984480,3.39497619,28061.0,28060.0,4.01773946]
[1680508985567,3.39497619,28061.0,28045.0,0.7]
[1680508985568,0.37728,28059.0,28045.0,0.7]
[1680508985797,0.1357,28046.0,28045.0,0.718007]
[1680508986032,0.29334445,28046.0,28045.0,0.718007]
[1680508986716,0.170864,28046.0,28045.0,0.718007]
[1680508987180,0.170864,28046.0,28045.0,0.70018]
[1680508987391,0.170864,28046.0,28045.0,0.718008]
[1680508987831,0.170864,28046.0,28045.0,0.018008]
[1680508988293,0.90311897,28046.0,28045.0,0.00018]
[1680508989178,0.52583897,28046.0,28045.0,0.00018]
[1680508989420,0.52583897,28046.0,28045.0,0.018008]
[1680508989636,0.170864,28046.0,28045.0,0.018008]
[1680508990302,0.135,28048.0,28045.0,1.21495784]
[1680508990521,0.1346,28056.0,28045.0,1.21495784]
[1680508990522,0.00018,28057.0,28052.0,0.7]
[1680508990801,0.1357,28058.0,28052.0,0.7]
[1680508990802,0.1357,28058.0,28053.0,0.26673587]
[1680508991019,0.1357,28058.0,28053.0,0.26691587]
[1680508991234,0.033514,28057.0,28053.0,0.26691587]
[1680508991881,0.033514,28057.0,28053.0,0.124941]
[1680508992304,0.38848897,28057.0,28053.0,0.124941]
[1680508992527,0.035892,28056.0,28053.0,0.124941]
[1680508992975,0.49037497,28055.0,28053.0,0.00018]
[1680508993197,0.564854,28054.0,28053.0,0.00018]
[1680508993437,0.187454,28054.0,28053.0,0.00018]
[1680508993669,0.037454,28054.0,28053.0,0.018003]
[1680508993886,0.31362,28055.0,28053.0,0.00018]
[1680508994258,0.038875,28054.0,28053.0,0.15997787]
[1680508994488,0.036455,28056.0,28053.0,0.018003]
[1680508994946,0.036455,28056.0,28051.0,0.771296]
[1680508994947,0.35497497,28055.0,28051.0,0.63109448]
[1680508995169,0.170676,28054.0,28053.0,0.017823]
[1680508995394,0.170856,28054.0,28053.0,0.017823]
[1680508995620,0.035956,28054.0,28053.0,0.017823]
[1680508995848,0.1357,28056.0,28053.0,0.017823]
[1680508995849,0.035396,28055.0,28053.0,0.017823]
[1680508997232,0.39037097,28055.0,28053.0,0.017823]
[1680508997494,0.00018,28055.0,28053.0,0.64891748]
[1680508997712,0.69712856,28059.0,28054.0,0.022416]
[1680508997929,0.69712856,28059.0,28058.0,0.63109448]
[1680508997930,0.69694856,28059.0,28058.0,0.63109448]
[1680508998148,0.73125856,28059.0,28058.0,0.68455448]
[1680508998376,0.73125856,28059.0,28058.0,0.82652935]
[1680508998377,0.59555856,28059.0,28058.0,0.82652935]
[1680508998596,0.56142856,28059.0,28058.0,0.68455448]
[1680508998821,0.56142856,28059.0,28058.0,0.70741648]
[1680508999046,0.56142856,28059.0,28058.0,1.43979145]
[1680508999280,0.56142856,28059.0,28058.0,1.44094245]
[1680508999728,0.56124856,28059.0,28058.0,1.44112245]
[1680509000678,0.43970912,28059.0,28058.0,1.59468894]
[1680509002046,0.43970912,28059.0,28058.0,1.57682245]
[1680509002270,0.43970912,28059.0,28058.0,1.59468894]
[1680509003204,0.43970912,28059.0,28058.0,1.57682245]
[1680509004393,0.43970912,28059.0,28058.0,1.59468894]
[1680509005544,0.56218957,28059.0,28058.0,0.23121949]
[1680509005776,0.56218957,28059.0,28058.0,0.018]
[1680509006007,0.47535512,28059.0,28058.0,0.68455448]
[1680509006225,0.43970912,28059.0,28058.0,0.68473448]
[1680509006464,0.00970885,28062.0,28058.0,0.55364]
[1680509006682,0.14533266,28068.0,28058.0,0.75352]
[1680509006683,0.38022497,28061.0,28058.0,0.75352]
[1680509006906,0.025879,28060.0,28058.0,0.7]
[1680509007133,0.73237497,28059.0,28058.0,0.7]
[1680509007364,0.025115,28059.0,28058.0,0.01782]
[1680509007633,0.02454,28063.0,28058.0,0.01782]
[1680509007875,0.73237497,28059.0,28053.0,0.00018]
[1680509008093,0.1345,28061.0,28055.0,0.017821]
[1680509008094,1.03005642,28058.0,28055.0,0.017821]
[1680509008315,0.024192,28057.0,28055.0,0.017821]
[1680509008767,0.401316,28060.0,28055.0,0.017821]
[1680509009007,0.025203,28059.0,28055.0,0.017821]
[1680509009246,0.73237497,28058.0,28055.0,0.017821]
[1680509009472,0.024382,28057.0,28055.0,0.017822]
[1680509009700,0.37953697,28057.0,28055.0,0.017822]
[1680509009924,0.024332,28056.0,28055.0,0.017822]
[1680509012450,0.024332,28056.0,28054.0,0.7]
[1680509012682,0.024332,28056.0,28055.0,0.017822]
[1680509015166,0.025887,28058.0,28055.0,0.017822]
[1680509015393,0.38086197,28058.0,28055.0,0.017822]
[1680509015613,0.025317,28057.0,28055.0,0.017822]
[1680509015836,0.025437,28057.0,28055.0,0.017822]
[1680509016063,0.53047197,28057.0,28055.0,0.017822]
[1680509016286,0.025173,28056.0,28055.0,0.017822]
[1680509017635,0.97098122,28056.0,28052.0,0.00018]
[1680509017862,0.97098122,28056.0,28051.0,0.7]
[1680509017863,0.5131,28053.0,28051.0,0.7]
[1680509018088,0.37968497,28052.0,28051.0,0.7]
[1680509018312,0.37986497,28052.0,28051.0,0.7]
[1680509018766,0.75726497,28052.0,28051.0,0.7]
[1680509019008,0.5274,28051.0,28049.0,0.00018]
[1680509019243,0.75850197,28050.0,28048.0,0.7]
[1680509019468,0.025399,28049.0,28048.0,0.70018]
[1680509019694,0.75777397,28049.0,28048.0,0.7]
[1680509019922,0.5274,28048.0,28047.0,0.00018]
[1680509020152,0.90582997,28048.0,28045.0,0.70018]
[1680509020385,0.75682097,28047.0,28045.0,0.70018]
[1680509020631,0.025333,28046.0,28045.0,0.7]
[1680509020850,0.38030797,28046.0,28045.0,0.7]
[1680509021071,0.38030797,28046.0,28045.0,0.718008]
[1680509021310,0.75770797,28046.0,28045.0,0.70018]
[1680509021539,0.89220797,28046.0,28045.0,0.70018]
[1680509022218,0.89238797,28046.0,28045.0,0.685]
[1680509022441,0.75788797,28046.0,28045.0,0.702828]
[1680509022659,0.75788797,28046.0,28045.0,0.685]
[1680509023634,0.75788797,28046.0,28045.0,0.702828]
[1680509023854,0.89288797,28046.0,28045.0,0.685]
[1680509024557,0.89288797,28046.0,28044.0,0.00018]
[1680509024777,0.75658397,28045.0,28043.0,0.017829]
[1680509024996,0.024931,28044.0,28043.0,0.017829]
[1680509025215,0.37990597,28044.0,28043.0,0.017829]
[1680509025667,0.75730597,28044.0,28043.0,0.017829]
[1680509025890,0.75730597,28044.0,28042.0,0.724709]
[1680509026112,0.37914897,28043.0,28042.0,0.7067]
[1680509026339,0.37914897,28043.0,28042.0,0.72471]
[1680509028573,0.00018,28044.0,28042.0,1.22165984]
[1680509028801,0.1357,28050.0,28043.0,0.036286]
[1680509028802,0.00018,28050.0,28043.0,0.036286]
[1680509029027,0.35497497,28049.0,28048.0,0.685]
[1680509029290,0.37884697,28049.0,28048.0,0.685]
[1680509029520,0.75624697,28049.0,28048.0,0.685]
[1680509029744,0.15,28048.0,28046.0,0.00018]
[1680509029975,0.537469,28047.0,28042.0,0.0217]
[1680509030201,0.3774,28044.0,28042.0,0.7067]
[1680509030465,0.75725897,28043.0,28042.0,0.70688]
[1680509031754,0.37985897,28043.0,28042.0,0.72471]
[1680509032248,0.024884,28043.0,28042.0,0.72471]
[1680509032494,0.025333,28044.0,28042.0,0.72453]
[1680509032711,0.38030797,28044.0,28042.0,0.72453]
[1680509032932,0.75730097,28043.0,28042.0,0.72471]
[1680509033166,0.167824,28051.0,28042.0,0.72471]
[1680509033167,0.00018,28044.0,28043.0,0.27628711]
[1680509033396,0.00018,28051.0,28049.0,0.685]
[1680509033626,0.00018,28054.0,28050.0,0.017825]
[1680509034066,0.3774,28053.0,28049.0,0.685]
[1680509034300,0.025715,28052.0,28049.0,0.702825]
[1680509034548,0.35497497,28051.0,28049.0,0.702825]
[1680509034753,0.402426,28050.0,28049.0,0.685]
[1680509034983,0.75758097,28050.0,28049.0,0.685]
[1680509035224,0.89328097,28050.0,28049.0,0.685]
[1680509037012,0.51594097,28050.0,28049.0,0.685]
[1680509037231,0.38024097,28050.0,28049.0,0.702825]
[1680509037659,0.025266,28050.0,28049.0,0.702825]
[1680509037876,6e-05,28050.0,28049.0,0.702825]
[1680509038372,0.73243497,28050.0,28049.0,0.685]
[1680509038588,0.75794497,28050.0,28049.0,0.685]
[1680509038804,0.75800497,28050.0,28049.0,0.685]
[1680509039467,0.75800497,28050.0,28048.0,0.00018]
[1680509039701,0.75800497,28050.0,28045.0,0.00018]
[1680509039702,0.5274,28048.0,28045.0,0.00018]
[1680509039916,0.1345,28046.0,28043.0,0.68518]
[1680509040136,0.025761,28045.0,28044.0,0.017828]
[1680509040350,0.38073597,28045.0,28044.0,0.017829]
[1680509040571,0.75813597,28045.0,28044.0,0.017829]
[1680509040998,0.38073597,28045.0,28044.0,0.017829]
[1680509041221,0.38073597,28045.0,28043.0,0.68518]
[1680509044102,0.02558,28046.0,28044.0,0.017829]
[1680509049480,0.3774,28044.0,28043.0,0.685]
[1680509049718,0.75524097,28044.0,28043.0,0.68518]
[1680509049941,0.75542097,28044.0,28043.0,0.685]
[1680509050855,0.75542097,28044.0,28043.0,0.68494]
[1680509051950,0.99806207,28044.0,28042.0,0.0217]
[1680509052192,0.90788397,28043.0,28042.0,0.0217]
[1680509052414,0.93439297,28043.0,28042.0,0.0217]
[1680509053101,0.93439297,28043.0,28041.0,0.0218]
[1680509053102,0.95207946,28043.0,28041.0,0.0218]
[1680509053315,0.3774,28040.0,28036.0,0.0218]
[1680509053597,0.6631,28037.0,28036.0,0.0218]
[1680509053838,1.16788022,28037.0,28036.0,0.02198]
[1680509054068,1.05233997,28037.0,28036.0,0.0218]
[1680509054294,1.07017297,28037.0,28036.0,0.0218]
[1680509054534,1.18077467,28037.0,28036.0,0.0218]
[1680509054785,1.16294167,28037.0,28036.0,0.0218]
[1680509055228,1.18077467,28037.0,28036.0,0.0218]
[1680509055919,1.48095467,28037.0,28036.0,0.0218]
[1680509056141,1.48095467,28037.0,28034.0,6e-06]
[1680509056142,0.3774,28035.0,28034.0,6e-06]
[1680509056373,0.01506,28034.0,28028.0,0.02198]
[1680509056595,0.86807497,28029.0,28028.0,0.010906]
[1680509056845,1.33609022,28029.0,28028.0,0.010906]
[1680509057064,1.39893997,28029.0,28028.0,0.010906]
[1680509057305,1.54241947,28029.0,28028.0,0.010906]
[1680509057546,1.54241947,28029.0,28028.0,6e-06]
[1680509057765,1.52458147,28029.0,28028.0,6e-06]
[1680509058005,1.22054997,28029.0,28027.0,0.02139801]
[1680509058234,1.06545397,28028.0,28027.0,0.02139801]
[1680509058458,1.08329297,28028.0,28027.0,8.01e-06]
[1680509058690,1.22661587,28028.0,28027.0,8.01e-06]
[1680509059134,1.08329297,28028.0,28027.0,8.01e-06]
[1680509059367,1.06545397,28028.0,28027.0,8.01e-06]
[1680509060455,1.08329297,28028.0,28027.0,8.01e-06]
[1680509060896,1.06545397,28028.0,28027.0,8.01e-06]
[1680509061410,0.024579,28028.0,28027.0,0.12543495]
[1680509061638,0.00018,28030.0,28027.0,1.13138767]
[1680509061878,0.37758,28033.0,28028.0,0.14044699]
[1680509062106,0.75659597,28032.0,28030.0,0.68494]
[1680509062331,0.026035,28031.0,28030.0,0.68494]
[1680509062551,0.026035,28031.0,28030.0,0.702958]
[1680509062771,0.00018,28035.0,28030.0,0.702778]
[1680509062991,0.73237497,28034.0,28031.0,0.14044699]
[1680509063215,0.025273,28033.0,28032.0,0.017836]
[1680509063431,0.025273,28033.0,28032.0,0.018016]
[1680509063675,0.2857,28038.0,28036.0,0.68494]
[1680509063676,0.3774,28038.0,28036.0,0.68494]
[1680509063903,0.025157,28037.0,28036.0,0.68494]
[1680509064131,0.00018,28042.0,28036.0,0.68494]
[1680509064357,0.00018,28045.0,28040.0,0.68494]
[1680509064584,0.35497497,28044.0,28041.0,0.14044699]
[1680509064812,0.403332,28043.0,28041.0,0.14044699]
[1680509065039,0.3774,28041.0,28040.0,0.68494]
[1680509065262,0.75754597,28041.0,28040.0,0.68512]
[1680509066581,0.75754597,28041.0,28040.0,0.00018]
[1680509066797,0.76604597,28041.0,28038.0,0.68494]
[1680509067015,0.76604597,28041.0,28038.0,0.68512]
[1680509067016,0.73237497,28039.0,28038.0,0.68512]
[1680509067232,0.75753397,28039.0,28038.0,0.68512]
[1680509068334,0.38013397,28039.0,28038.0,0.702952]
[1680509069241,0.025159,28039.0,28038.0,0.702952]
[1680509069460,0.37758,28044.0,28038.0,0.702772]
[1680509069704,0.37997697,28043.0,28039.0,0.14044699]
[1680509069923,0.00018,28044.0,28042.0,0.68494]
[1680509070144,0.1357,28050.0,28043.0,0.124807]
[1680509070145,0.13588,28050.0,28043.0,0.124807]
[1680509070390,0.37964097,28049.0,28047.0,0.68494]
[1680509070599,0.402741,28048.0,28047.0,0.68494]
[1680509070815,0.75789597,28048.0,28047.0,0.68494]
[1680509072615,0.76639597,28048.0,28047.0,0.68494]
[1680509072838,0.75789597,28048.0,28047.0,0.68494]
[1680509073520,0.75789597,28048.0,28046.0,0.00018]
[1680509073755,0.75871397,28047.0,28044.0,0.68494]
[1680509074047,0.025632,28046.0,28044.0,0.68494]
[1680509074275,0.73237497,28045.0,28044.0,0.68494]
[1680509074497,0.75784897,28045.0,28044.0,0.68494]
[1680509076112,0.025474,28045.0,28044.0,0.84321599]
[1680509076328,0.0090069,28051.0,28048.0,0.68494]
[1680509076329,0.00018,28050.0,28048.0,0.68494]
[1680509076590,0.35497497,28049.0,28048.0,0.68494]
[1680509076813,0.38049897,28049.0,28048.0,0.68494]
[1680509077253,0.75789897,28049.0,28048.0,0.68494]
[1680509077702,0.76639897,28049.0,28048.0,0.68494]
[1680509078815,0.86176356,28049.0,28048.0,0.68494]
[1680509079034,0.76639897,28049.0,28048.0,0.68494]
[1680509081535,0.96248397,28049.0,28048.0,0.68494]
[1680509082194,0.3774,28047.0,28046.0,0.68494]
[1680509082426,0.87851837,28047.0,28046.0,0.68494]
[1680509082868,0.87851837,28047.0,28046.0,0.68485893]
[1680509083307,0.026395,28047.0,28046.0,0.70268593]
[1680509083535,0.37758,28050.0,28046.0,0.70268593]
[1680509083766,0.37931397,28049.0,28046.0,0.84313292]
[1680509083986,0.73237497,28047.0,28046.0,0.68485893]
[1680509084263,0.75548397,28047.0,28046.0,0.70286593]
[1680509084929,0.75548397,28047.0,28046.0,0.68503893]
[1680509087770,0.83955037,28047.0,28046.0,0.68503893]
[1680509089535,0.76398397,28047.0,28046.0,0.68503893]
[1680509090461,0.76398397,28047.0,28045.0,0.00018]
[1680509090462,0.02505,28046.0,28045.0,0.00018]
[1680509090642,0.02505,28046.0,28042.0,0.68503893]
[1680509090643,0.025177,28045.0,28042.0,0.68503893]
[1680509090841,0.73237497,28043.0,28042.0,0.68503893]
[1680509091046,0.75677997,28043.0,28042.0,0.68503893]
[1680509091890,0.76527997,28043.0,28042.0,0.68503893]
[1680509092099,0.75677997,28043.0,28042.0,0.68503893]
[1680509092505,0.98805614,28043.0,28042.0,0.00018]
[1680509092732,1.35210497,28043.0,28039.0,0.00018]
[1680509092937,0.15,28039.0,28038.0,0.68503893]
[1680509093195,0.90773297,28039.0,28038.0,0.68503893]
[1680509094433,0.91623297,28039.0,28038.0,0.68503893]
[1680509096112,0.75773297,28039.0,28038.0,0.68503893]
[1680509097200,0.38033297,28039.0,28038.0,0.68503893]
[1680509097419,0.75773297,28039.0,28038.0,0.68503893]
[1680509097636,0.38033297,28039.0,28038.0,0.68503893]
[1680509098276,0.75773297,28039.0,28038.0,0.68503893]
[1680509099122,0.76623297,28039.0,28038.0,0.68503893]
[1680509100889,0.75773297,28039.0,28038.0,0.68503893]
[1680509102603,0.76623297,28039.0,28038.0,0.68503893]
[1680509103242,0.96238497,28039.0,28038.0,0.00018]
[1680509103453,0.96238497,28039.0,28035.0,0.00018]
[1680509103454,1.06934027,28039.0,28035.0,0.00018]
[1680509103675,0.75613097,28036.0,28035.0,0.00018]
[1680509103885,0.76463097,28036.0,28035.0,0.00018]
[1680509104761,0.78246497,28036.0,28035.0,0.00018]
[1680509104990,0.76463097,28036.0,28035.0,0.00018]
[1680509105197,0.86146207,28036.0,28035.0,0.00018]
[1680509105403,0.76463097,28036.0,28035.0,0.00018]
[1680509106055,0.37873097,28036.0,28035.0,0.00018]
[1680509106284,0.37873097,28036.0,28035.0,0.018014]
[1680509107372,0.75613097,28036.0,28035.0,0.018014]
[1680509107812,0.00018,28038.0,28035.0,0.85469292]
[1680509108030,0.009274,28044.0,28043.0,0.68485893]
[1680509108278,1.45811997,28044.0,28043.0,0.82530592]
[1680509108503,1.61912997,28044.0,28043.0,0.82530592]
[1680509108718,1.45829997,28044.0,28043.0,0.68491893]
[1680509108938,1.45811997,28044.0,28043.0,0.68503893]
[1680509109147,0.75811997,28044.0,28043.0,0.68503893]
[1680509109358,0.025745,28044.0,28043.0,0.87897392]
[1680509109578,0.00018,28047.0,28043.0,0.73852693]
[1680509109789,0.025592,28045.0,28043.0,0.87879392]
[1680509109998,0.025592,28045.0,28043.0,0.73852693]
[1680509110435,0.35497497,28046.0,28043.0,0.73852693]
[1680509110655,0.025226,28045.0,28043.0,0.73852693]
[1680509110868,0.00018,28047.0,28046.0,0.68485893]
[1680509111090,0.017875,28051.0,28050.0,0.68467893]
[1680509111298,0.35509497,28051.0,28050.0,0.82512592]
[1680509111512,0.37292397,28051.0,28050.0,0.68467893]
[1680509111943,0.37334063,28051.0,28050.0,0.68467893]
[1680509112401,0.75074063,28051.0,28050.0,0.68467893]
[1680509113912,0.37334063,28051.0,28050.0,0.68467893]
[1680509114553,0.37334063,28051.0,28050.0,0.70250393]
[1680509115026,0.01836566,28051.0,28050.0,0.70250393]
[1680509115252,0.00041666,28051.0,28050.0,0.68467893]
[1680509115477,0.37242463,28051.0,28050.0,0.68467893]
[1680509115694,0.37234009,28051.0,28050.0,0.68485893]
[1680509115927,0.00041783,28051.0,28050.0,0.68485893]
[1680509116122,0.00041783,28051.0,28050.0,0.68467893]
[1680509116772,0.01777983,28051.0,28050.0,0.68467893]
[1680509116990,0.017926,28052.0,28050.0,0.68467893]
[1680509117204,0.017783,28053.0,28050.0,0.68467893]
[1680509117433,0.017257,28052.0,28050.0,0.68467893]
[1680509117646,0.50497497,28053.0,28050.0,0.68467893]
[1680509117647,0.74946497,28051.0,28050.0,0.68467893]
[1680509117859,0.74946497,28051.0,28050.0,0.68485893]
[1680509118066,0.01709,28051.0,28050.0,0.68485893]
[1680509118283,0.01648,28052.0,28050.0,0.68467893]
[1680509118495,0.017337,28051.0,28050.0,0.68467893]
[1680509118696,0.017337,28051.0,28050.0,0.68485893]
[1680509119543,0.37231197,28051.0,28050.0,0.68485893]
[1680509119750,0.017337,28051.0,28050.0,1.03057641]
[1680509120005,0.00018,28054.0,28050.0,0.39919248]
[1680509120207,0.02398,28056.0,28054.0,0.2]
[1680509120417,0.02398,28056.0,28055.0,0.19391299]
[1680509120845,0.02398,28056.0,28055.0,0.053466]
[1680509121265,0.02398,28056.0,28055.0,0.228797]
[1680509121479,0.02398,28056.0,28055.0,0.230048]
[1680509122333,0.02398,28056.0,28055.0,0.229868]
[1680509122809,0.02398,28056.0,28055.0,0.73484297]
[1680509123027,0.02398,28056.0,28055.0,0.96944297]
[1680509123462,0.02398,28056.0,28055.0,1.34684297]
[1680509123675,0.02398,28056.0,28055.0,1.49684297]
[1680509123910,0.02398,28056.0,28055.0,1.34684297]
[1680509124140,0.02398,28056.0,28055.0,1.34702297]
[1680509124358,0.02398,28056.0,28055.0,0.96962297]
[1680509125000,0.02398,28056.0,28055.0,1.11962297]
[1680509125473,0.02398,28056.0,28055.0,1.34702297]
[1680509125684,0.02398,28056.0,28055.0,1.44702297]
[1680509125892,0.02398,28056.0,28055.0,1.72276996]
[1680509126108,8e-05,28056.0,28055.0,1.58214297]
[1680509126319,8e-05,28056.0,28055.0,1.36412976]
[1680509126528,8e-05,28056.0,28055.0,1.48214297]
[1680509126754,8e-05,28056.0,28055.0,1.73557276]
[1680509126974,8e-05,28056.0,28055.0,1.48214297]
[1680509127868,8e-05,28056.0,28055.0,1.10474297]
[1680509128300,8e-05,28056.0,28055.0,1.48214297]
[1680509129405,8e-05,28056.0,28055.0,1.09754297]
[1680509129619,0.01406,28058.0,28057.0,0.5774]
[1680509129831,0.01406,28058.0,28057.0,1.10958397]
[1680509130037,0.01406,28058.0,28057.0,1.18663193]
[1680509130251,0.01406,28058.0,28055.0,0.13548]
[1680509130492,0.01406,28058.0,28051.0,0.821781]
[1680509130493,0.49555514,28057.0,28051.0,0.00018]
[1680509130718,0.028553,28056.0,28055.0,0.4896276]
[1680509130927,0.028733,28056.0,28053.0,0.4896276]
[1680509131138,0.38446497,28055.0,28053.0,0.4896276]
[1680509131350,0.031581,28054.0,28053.0,0.4896276]
[1680509131567,0.031581,28054.0,28049.0,0.00018]
[1680509131568,0.6773924,28053.0,28049.0,0.00018]
[1680509131832,0.86797497,28050.0,28046.0,0.4896276]
[1680509132061,0.14058017,28049.0,28046.0,0.4896276]
[1680509132284,0.030747,28047.0,28046.0,0.4896276]
[1680509132501,0.52648214,28047.0,28046.0,0.4896276]
[1680509132729,0.38590197,28047.0,28046.0,0.4896276]
[1680509133372,0.40372897,28047.0,28046.0,0.4896276]
[1680509133798,0.78112897,28047.0,28046.0,0.4896276]
[1680509134022,0.38590197,28047.0,28046.0,0.4896276]
[1680509134271,0.48540707,28047.0,28046.0,0.4896276]
[1680509134501,0.86280707,28047.0,28046.0,0.4896276]